[Event "Mukachevo IM June 2019"]
[Site "Mukachevo"]
[Date "2019.06.24"]
[Round "1.1"]
[White "Larkin, Vladyslav"]
[Black "Sakun, Volodymyr"]
[Result "0-1"]
[ECO "A48"]
[WhiteElo "2398"]
[BlackElo "2349"]
[Annotator "NA"]
[PlyCount "114"]
[EventDate "2019.06.24"]
[EventType "tourn"]
[EventCountry "UKR"]
[SourceTitle "playchess.com"]
[Source "ChessBase"]
[SourceQuality "1"]
[TimeControl "40/5400+30:900+30"]

1. d4 {[%emt 0:00:00]} Nf6 {[%emt 0:00:00]} 2. Nf3 {[%emt 0:00:00]} g6 {[%emt 0:00:00]} 3. Bg5 {[%emt 0:00:00]} Bg7 {[%emt 0:00:00]} 4. Nbd2 {[%emt 0:00:00]} O-O {[%emt 0:00:24]} 5. c3 {[%emt 0:00:05]} d6 {[%emt 0:02:40]} 6. e4 {[%emt 0:01:14]} Nc6 {[%emt 0:00:17]} 7. Be2 {[%emt 0:02:36]} h6 {[%emt 0:00:59]} 8. Bxf6 {[%emt 0:02:23]} Bxf6 {[%emt 0:00:43]} 9. O-O {[%emt 0:00:05]} e5 {[%emt 0:07:29]} 10. dxe5 {[%emt 0:02:05]} Nxe5 {[%emt 0:01:51]} 11. Nd4 {[%emt 0:15:35]} Bd7 {[%emt 0:06:47]} 12. f4 {[%emt 0:02:35]} Nc6 {[%emt 0:00:18]} 13. N2b3 {[%emt 0:00:05]} Bg7 {[%emt 0:01:42]} 14. Bf3 {[%emt 0:01:11]} Nxd4 {[%emt 0:02:31]} 15. Nxd4 {[%emt 0:13:06]} c6 {[%emt 0:08:07]} 16. Kh1 {[%emt 0:01:09]} Qb6 {[%emt 0:01:05]} 17. Qd2 {[%emt 0:07:00]} Rad8 {[%emt 0:01:09]} 18. Rad1 {[%emt 0:04:15]} a5 {[%emt 0:08:34]} 19. Qc1 {[%emt 0:08:35]} Bc8 {[%emt 0:04:07]} 20. Rd2 {[%emt 0:05:07]} Rfe8 {[%emt 0:02:28]} 21. Rfd1 {[%emt 0:01:39]} Qc7 {[%emt 0:05:08]} 22. Ne2 {[%emt 0:08:57]} Qe7 {[%emt 0:04:03]} 23. Nd4 {[%emt 0:04:53]} h5 {[%emt 0:06:20]} 24. Qc2 {[%emt 0:02:51]} h4 {[%emt 0:10:54]} 25. Rf1 {[%emt 0:10:11]} Bd7 {[%emt 0:06:07]} 26. Qb3 {[%emt 0:01:57]} b5 {[%emt 0:05:33]} 27. e5 {[%emt 0:02:03]} d5 {[%emt 0:07:00]} 28. Qd1 {[%emt 0:00:25]} b4 {[%emt 0:03:21]} 29. Bg4 {[%emt 0:01:13]} c5 {[%emt 0:00:57]} 30. Bxd7 {[%emt 0:00:23]} Qxd7 {[%emt 0:00:08]} 31. Nb3 {[%emt 0:00:59]} Qb5 {[%emt 0:01:52]} 32. a4 {[%emt 0:01:30]} bxa3 {[%emt 0:00:37]} 33. bxa3 {[%emt 0:00:04]} a4 {[%emt 0:00:34]} 34. Nc1 {[%emt 0:00:15]} Qc4 {[%emt 0:01:07]} 35. Qf3 {[%emt 0:00:52]} f6 {[%emt 0:01:05]} 36. f5 {[%emt 0:01:08]} fxe5 {[%emt 0:00:28]} 37. f6 {[%emt 0:00:42]} Rf8 {[%emt 0:00:20]} 38. f7+ {[%emt 0:00:05]} Kh7 {[%emt 0:00:04]} 39. Rfd1 {[%emt 0:01:00]} d4 {[%emt 0:00:34]} 40. Qh3 {[%emt 0:00:00]} Qxf7 {[%emt 0:00:00]} 41. Qxh4+ {[%emt 0:01:03]} Kg8 {[%emt 0:05:09]} 42. Ne2 {[%emt 0:04:58]} c4 {[%emt 0:02:29]} 43. Ng3 {[%emt 0:03:25]} Rb8 {[%emt 0:03:43]} 44. Qe4 {[%emt 0:03:12]} d3 {[%emt 0:00:53]} 45. h3 {[%emt 0:01:08]} Qe6 {[%emt 0:01:32]} 46. Qe3 {[%emt 0:01:06]} e4 {[%emt 0:02:19]} 47. Qxe4 {[%emt 0:02:43]} Qxe4 {[%emt 0:00:26]} 48. Nxe4 {[%emt 0:00:05]} Rf4 {[%emt 0:01:05]} 49. Re1 {[%emt 0:00:53]} Rb3 {[%emt 0:02:18]} 50. Nd6 {[%emt 0:01:21]} Rxc3 {[%emt 0:01:13]} 51. Re8+ {[%emt 0:00:06]} Rf8 {[%emt 0:00:11]} 52. Re4 {[%emt 0:00:35]} Rf1+ {[%emt 0:00:34]} 53. Kh2 {[%emt 0:00:03]} Bh6 {[%emt 0:00:47]} 54. Re8+ {[%emt 0:01:01]} Rf8 {[%emt 0:00:41]} 55. Rf2 {[%emt 0:01:30]} Rxe8 {[%emt 0:00:26]} 56. Nxe8 {[%emt 0:00:07]} d2 {[%emt 0:00:29]} 57. Nf6+ {[%emt 0:00:04]} Kh8 {[%emt 0:00:17]} 0-1

[Event "Mukachevo IM June 2019"]
[Site "Mukachevo"]
[Date "2019.06.24"]
[Round "1.2"]
[White "Terbe, Zsuzsanna"]
[Black "Terletsky, Oleg"]
[Result "1-0"]
[ECO "A45"]
[WhiteElo "2160"]
[BlackElo "2318"]
[Annotator "NA"]
[PlyCount "87"]
[EventDate "2019.06.24"]
[EventType "tourn"]
[EventCountry "UKR"]
[SourceTitle "playchess.com"]
[Source "ChessBase"]
[SourceQuality "1"]
[TimeControl "40/5400+30:900+30"]

1. d4 {[%emt 0:00:00]} Nf6 {[%emt 0:00:00]} 2. Bf4 {[%emt 0:00:00]} g6 {[%emt 0:00:15]} 3. e3 {[%emt 0:00:01]} Bg7 {[%emt 0:00:06]} 4. Nf3 {[%emt 0:00:04]} O-O {[%emt 0:00:07]} 5. Be2 {[%emt 0:00:13]} d6 {[%emt 0:00:08]} 6. h3 {[%emt 0:00:05]} Nbd7 {[%emt 0:00:07]} 7. O-O {[%emt 0:00:08]} b6 {[%emt 0:00:14]} 8. c4 {[%emt 0:01:02]} Bb7 {[%emt 0:00:06]} 9. Nc3 {[%emt 0:00:14]} Re8 {[%emt 0:03:12]} 10. Bh2 {[%emt 0:01:03]} e5 {[%emt 0:00:16]} 11. Rc1 {[%emt 0:03:27]} Ne4 {[%emt 0:08:49]} 12. Nxe4 {[%emt 0:04:05]} Bxe4 {[%emt 0:00:03]} 13. Nd2 {[%emt 0:04:38]} Bb7 {[%emt 0:00:29]} 14. d5 {[%emt 0:00:18]} e4 {[%emt 0:19:40]} 15. b4 {[%emt 0:07:22]} a5 {[%emt 0:00:22]} 16. a3 {[%emt 0:00:18]} Bb2 {[%emt 0:04:14]} 17. Qb3 {[%emt 0:04:19]} Bxc1 {[%emt 0:01:14]} 18. Rxc1 {[%emt 0:00:05]} axb4 {[%emt 0:00:42]} 19. axb4 {[%emt 0:00:15]} Qf6 {[%emt 0:01:58]} 20. Qb1 {[%emt 0:01:07]} Qe7 {[%emt 0:00:50]} 21. Nb3 {[%emt 0:03:58]} Ra4 {[%emt 0:03:34]} 22. Nd4 {[%emt 0:01:08]} Rea8 {[%emt 0:07:34]} 23. Bd1 {[%emt 0:03:34]} Ra2 {[%emt 0:04:59]} 24. Bb3 {[%emt 0:01:11]} Rd2 {[%emt 0:00:37]} 25. Bc2 {[%emt 0:02:34]} Qf6 {[%emt 0:07:33]} 26. Bg3 {[%emt 0:01:27]} Rxd4 {[%emt 0:04:10]} 27. exd4 {[%emt 0:00:10]} Qxd4 {[%emt 0:00:05]} 28. Bxe4 {[%emt 0:00:10]} Ra3 {[%emt 0:05:36]} 29. Bf3 {[%emt 0:02:16]} f5 {[%emt 0:03:03]} 30. Qc2 {[%emt 0:05:59]} f4 {[%emt 0:08:40]} 31. Bh4 {[%emt 0:03:20]} Ne5 {[%emt 0:00:14]} 32. Qe4 {[%emt 0:07:45]} Qd2 {[%emt 0:01:22]} 33. Rd1 {[%emt 0:01:45]} Qxb4 {[%emt 0:01:39]} 34. Qxf4 {[%emt 0:01:46]} Rxf3 {[%emt 0:04:12]} 35. gxf3 {[%emt 0:01:13]} Qb3 {[%emt 0:00:04]} 36. Rc1 {[%emt 0:06:59]} Qxf3 {[%emt 0:00:14]} 37. Qg5 {[%emt 0:01:24]} Qf7 {[%emt 0:05:25]} 38. Qf6 {[%emt 0:05:14]} Nf3+ {[%emt 0:00:31]} 39. Kg2 {[%emt 0:01:08]} Nxh4+ {[%emt 0:01:10]} 40. Qxh4 {[%emt 0:00:00]} b5 {[%emt 0:00:00]} 41. Re1 {[%emt 0:07:03]} g5 {[%emt 0:02:43]} 42. Qxg5+ {[%emt 0:00:38]} Qg6 {[%emt 0:00:05]} 43. Re8+ {[%emt 0:00:31]} Kf7 {[%emt 0:01:21]} 44. Re7+ {[%emt 0:00:19]} 1-0

[Event "Mukachevo IM June 2019"]
[Site "Mukachevo"]
[Date "2019.06.24"]
[Round "1.3"]
[White "Vachylia, Andrii"]
[Black "Karelina, Polina"]
[Result "1-0"]
[ECO "C50"]
[WhiteElo "2263"]
[BlackElo "1718"]
[Annotator "NA"]
[PlyCount "49"]
[EventDate "2019.06.24"]
[EventType "tourn"]
[EventCountry "UKR"]
[SourceTitle "playchess.com"]
[Source "ChessBase"]
[SourceQuality "1"]
[TimeControl "40/5400+30:900+30"]

1. e4 {[%emt 0:00:00]} e5 {[%emt 0:00:00]} 2. Nf3 {[%emt 0:00:01]} Nc6 {[%emt 0:00:25]} 3. Bc4 {[%emt 0:00:09]} Nf6 {[%emt 0:01:02]} 4. d3 {[%emt 0:00:17]} Bc5 {[%emt 0:03:23]} 5. O-O {[%emt 0:00:38]} O-O {[%emt 0:00:41]} 6. a4 {[%emt 0:01:27]} d6 {[%emt 0:01:19]} 7. c3 {[%emt 0:00:56]} a6 {[%emt 0:01:13]} 8. Bg5 {[%emt 0:00:21]} Be6 {[%emt 0:04:01]} 9. Nbd2 {[%emt 0:06:13]} Qe7 {[%emt 0:02:44]} 10. b4 {[%emt 0:07:46]} Ba7 {[%emt 0:01:44]} 11. Bh4 {[%emt 0:03:37]} h6 {[%emt 0:03:21]} 12. Kh1 {[%emt 0:17:55]} Bxc4 {[%emt 0:05:05]} 13. Nxc4 {[%emt 0:00:07]} Qe6 {[%emt 0:01:36]} 14. Nfd2 {[%emt 0:02:04]} d5 {[%emt 0:05:42]} 15. Ne3 {[%emt 0:00:18]} d4 {[%emt 0:02:13]} 16. cxd4 {[%emt 0:05:27]} Nxd4 {[%emt 0:09:35]} 17. Bxf6 {[%emt 0:00:20]} Qxf6 {[%emt 0:00:22]} 18. f4 {[%emt 0:00:14]} exf4 {[%emt 0:07:54]} 19. Nd5 {[%emt 0:00:11]} Qd6 {[%emt 0:01:08]} 20. Nc4 {[%emt 0:00:42]} Qd7 {[%emt 0:02:23]} 21. Qh5 {[%emt 0:02:47]} Nc2 {[%emt 0:05:49]} 22. Rac1 {[%emt 0:22:49]} Ne3 {[%emt 0:00:58]} 23. Ncxe3 {[%emt 0:00:09]} c6 {[%emt 0:15:42]} 24. Nf6+ {[%emt 0:00:31]} gxf6 {[%emt 0:00:14]} 25. Nf5 {[%emt 0:00:17]} 1-0

[Event "Mukachevo IM June 2019"]
[Site "Mukachevo"]
[Date "2019.06.24"]
[Round "1.4"]
[White "Tiba, Vladyslav"]
[Black "Priehoda, Vitezslav"]
[Result "1-0"]
[ECO "C92"]
[WhiteElo "2375"]
[BlackElo "2361"]
[Annotator "NA"]
[PlyCount "107"]
[EventDate "2019.06.24"]
[EventType "tourn"]
[EventCountry "UKR"]
[SourceTitle "playchess.com"]
[Source "ChessBase"]
[SourceQuality "1"]
[TimeControl "40/5400+30:900+30"]

1. e4 {[%emt 0:00:00]} e5 {[%emt 0:00:00]} 2. Nf3 {[%emt 0:00:00]} Nc6 {[%emt 0:00:00]} 3. Bb5 {[%emt 0:00:00]} a6 {[%emt 0:00:00]} 4. Ba4 {[%emt 0:00:00]} Nf6 {[%emt 0:00:00]} 5. O-O {[%emt 0:00:07]} Be7 {[%emt 0:00:03]} 6. Re1 {[%emt 0:00:17]} b5 {[%emt 0:01:00]} 7. Bb3 {[%emt 0:00:06]} O-O {[%emt 0:01:10]} 8. h3 {[%emt 0:03:22]} d6 {[%emt 0:01:18]} 9. c3 {[%emt 0:00:36]} Bb7 {[%emt 0:00:35]} 10. d4 {[%emt 0:01:25]} Re8 {[%emt 0:02:45]} 11. Nbd2 {[%emt 0:00:49]} Bf8 {[%emt 0:01:19]} 12. d5 {[%emt 0:00:50]} Nb8 {[%emt 0:03:25]} 13. Nf1 {[%emt 0:01:12]} Nbd7 {[%emt 0:01:17]} 14. N3h2 {[%emt 0:00:36]} c6 {[%emt 0:06:32]} 15. dxc6 {[%emt 0:03:47]} Bxc6 {[%emt 0:00:02]} 16. Bg5 {[%emt 0:02:03]} Qc7 {[%emt 0:14:06]} 17. Qf3 {[%emt 0:13:16]} Qb7 {[%emt 0:07:13]} 18. Ng3 {[%emt 0:17:05]} d5 {[%emt 0:13:27]} 19. Nf5 {[%emt 0:08:21]} Re6 {[%emt 0:06:21]} 20. Qg3 {[%emt 0:05:36]} Nxe4 {[%emt 0:17:30]} 21. Rxe4 {[%emt 0:00:27]} dxe4 {[%emt 0:00:02]} 22. Bxe6 {[%emt 0:02:37]} fxe6 {[%emt 0:00:01]} 23. Ne7+ {[%emt 0:01:09]} Bxe7 {[%emt 0:05:51]} 24. Bxe7 {[%emt 0:00:07]} Nb6 {[%emt 0:02:55]} 25. Bg5 {[%emt 0:04:18]} Bd5 {[%emt 0:07:30]} 26. Ng4 {[%emt 0:02:26]} Rf8 {[%emt 0:03:19]} 27. b3 {[%emt 0:03:57]} Kh8 {[%emt 0:03:53]} 28. Qxe5 {[%emt 0:04:10]} Rf5 {[%emt 0:00:34]} 29. Qd6 {[%emt 0:00:07]} h5 {[%emt 0:00:59]} 30. Ne3 {[%emt 0:02:20]} Rf7 {[%emt 0:00:18]} 31. Bd8 {[%emt 0:01:58]} Nd7 {[%emt 0:00:46]} 32. c4 {[%emt 0:02:25]} bxc4 {[%emt 0:00:36]} 33. bxc4 {[%emt 0:00:07]} Qc6 {[%emt 0:01:06]} 34. Qb4 {[%emt 0:00:58]} Qb7 {[%emt 0:00:12]} 35. Qd6 {[%emt 0:06:51]} Qc6 {[%emt 0:00:34]} 36. Qb4 {[%emt 0:06:17]} Qb7 {[%emt 0:00:02]} 37. Qa5 {[%emt 0:00:14]} Bc6 {[%emt 0:00:22]} 38. Qxh5+ {[%emt 0:00:11]} Kg8 {[%emt 0:00:01]} 39. Bh4 {[%emt 0:03:38]} Qb2 {[%emt 0:01:00]} 40. Qd1 {[%emt 0:00:00]} Ba4 {[%emt 0:00:00]} 41. Qc1 {[%emt 0:05:36]} Qd4 {[%emt 0:03:46]} 42. Rb1 {[%emt 0:01:32]} Nc5 {[%emt 0:00:13]} 43. Qb2 {[%emt 0:06:41]} Qxb2 {[%emt 0:08:58]} 44. Rxb2 {[%emt 0:00:03]} Rd7 {[%emt 0:00:28]} 45. Rb8+ {[%emt 0:01:07]} Kf7 {[%emt 0:00:02]} 46. Rc8 {[%emt 0:00:51]} Nd3 {[%emt 0:00:28]} 47. c5 {[%emt 0:02:48]} Nb4 {[%emt 0:01:09]} 48. Nc4 {[%emt 0:01:10]} Nc6 {[%emt 0:01:49]} 49. Kh2 {[%emt 0:02:06]} Rd4 {[%emt 0:00:15]} 50. Nb6 {[%emt 0:01:07]} Ne5 {[%emt 0:00:31]} 51. Bg3 {[%emt 0:00:37]} Nd3 {[%emt 0:00:23]} 52. c6 {[%emt 0:00:35]} Rb4 {[%emt 0:00:32]} 53. Nxa4 {[%emt 0:00:37]} Rxa4 {[%emt 0:00:02]} 54. c7 {[%emt 0:00:06]} 1-0

[Event "Mukachevo IM June 2019"]
[Site "Mukachevo"]
[Date "2019.06.24"]
[Round "1.5"]
[White "Oros, Robert"]
[Black "Boricsev, Oleg"]
[Result "1-0"]
[ECO "B40"]
[WhiteElo "2321"]
[BlackElo "2252"]
[Annotator "NA"]
[PlyCount "41"]
[EventDate "2019.06.24"]
[EventType "tourn"]
[EventCountry "UKR"]
[SourceTitle "playchess.com"]
[Source "ChessBase"]
[SourceQuality "1"]
[TimeControl "40/5400+30:900+30"]

1. Nf3 {[%emt 0:00:00]} c5 {[%emt 0:00:56]} 2. e4 {[%emt 0:01:13]} e6 {[%emt 0:04:57]} 3. d3 {[%emt 0:00:40]} d5 {[%emt 0:01:30]} 4. Nbd2 {[%emt 0:00:09]} Nf6 {[%emt 0:02:33]} 5. g3 {[%emt 0:00:14]} b6 {[%emt 0:02:16]} 6. Bg2 {[%emt 0:01:40]} Bb7 {[%emt 0:00:42]} 7. e5 {[%emt 0:02:26]} Nfd7 {[%emt 0:03:42]} 8. O-O {[%emt 0:00:49]} Nc6 {[%emt 0:00:40]} 9. Re1 {[%emt 0:00:31]} g5 {[%emt 0:04:44]} 10. c4 {[%emt 0:01:25]} g4 {[%emt 0:04:49]} 11. cxd5 {[%emt 0:00:40]} gxf3 {[%emt 0:08:02]} 12. dxc6 {[%emt 0:00:34]} fxg2 {[%emt 0:00:33]} 13. cxb7 {[%emt 0:02:16]} Rb8 {[%emt 0:00:09]} 14. Ne4 {[%emt 0:04:07]} Be7 {[%emt 0:04:30]} 15. Qh5 {[%emt 0:04:11]} Qc7 {[%emt 0:08:09]} 16. Nd6+ {[%emt 0:02:18]} Bxd6 {[%emt 0:01:58]} 17. exd6 {[%emt 0:00:11]} Qxd6 {[%emt 0:01:54]} 18. Bf4 {[%emt 0:00:18]} e5 {[%emt 0:04:47]} 19. Rxe5+ {[%emt 0:37:15]} Nxe5 {[%emt 0:00:46]} 20. Bxe5 {[%emt 0:00:05]} Qd5 {[%emt 0:00:18]} 21. Qf5 {[%emt 0:00:25]} 1-0

[Event "Mukachevo IM June 2019"]
[Site "Mukachevo"]
[Date "2019.06.25"]
[Round "2.1"]
[White "Sakun, Volodymyr"]
[Black "Boricsev, Oleg"]
[Result "1-0"]
[ECO "B38"]
[WhiteElo "2349"]
[BlackElo "2252"]
[Annotator "ChessBase"]
[PlyCount "203"]
[EventDate "2019.06.24"]
[EventType "tourn"]
[EventCountry "UKR"]
[SourceTitle "playchess.com"]
[Source "ChessBase"]
[SourceQuality "1"]
[TimeControl "40/5400+30:900+30"]

1. Nf3 {[%emt 0:00:00]} c5 {[%emt 0:01:41]} 2. c4 {[%emt 0:04:17]} Nc6 {[%emt 0:00:17]} 3. d4 {[%emt 0:00:16]} cxd4 {[%emt 0:00:37]} 4. Nxd4 {[%emt 0:00:03]} g6 {[%emt 0:00:12]} 5. e4 {[%emt 0:00:07]} Bg7 {[%emt 0:00:31]} 6. Be3 {[%emt 0:00:05]} Nf6 {[%emt 0:00:17]} 7. Nc3 {[%emt 0:00:04]} O-O {[%emt 0:00:27]} 8. Be2 {[%emt 0:00:04]} d6 {[%emt 0:00:26]} 9. O-O {[%emt 0:00:05]} Nxd4 {[%emt 0:00:32]} 10. Bxd4 {[%emt 0:00:05]} Be6 {[%emt 0:00:13]} 11. Qd2 {[%emt 0:06:11]} Qa5 {[%emt 0:01:08]} 12. Rfd1 {[%emt 0:00:42]} Rfc8 {[%emt 0:04:08]} 13. b3 {[%emt 0:01:50]} Nd7 {[%emt 0:05:17]} 14. Qe3 {[%emt 0:01:31]} Bxd4 {[%emt 0:04:52]} 15. Rxd4 {[%emt 0:01:10]} Qc5 {[%emt 0:08:31]} 16. Rad1 {[%emt 0:04:29]} Nf8 {[%emt 0:09:03]} 17. Nd5 {[%emt 0:03:35]} Bxd5 {[%emt 0:01:15]} 18. exd5 {[%emt 0:00:27]} a5 {[%emt 0:01:29]} 19. h4 {[%emt 0:04:48]} Re8 {[%emt 0:05:54]} 20. h5 {[%emt 0:10:36]} a4 {[%emt 0:07:39]} 21. hxg6 {[%emt 0:08:38]} hxg6 {[%emt 0:03:13]} 22. Qc3 {[%emt 0:25:30]} e5 {[%emt 0:10:35]} 23. dxe6 {[%emt 0:01:50]} Nxe6 {[%emt 0:01:34]} 24. Rxd6 {[%emt 0:02:23]} axb3 {[%emt 0:02:35]} 25. axb3 {[%emt 0:00:33]} Ng5 {[%emt 0:13:21]} 26. Bf3 {[%emt 0:06:37]} Nxf3+ {[%emt 0:03:54]} 27. Qxf3 {[%emt 0:00:43]} Re7 {[%emt 0:11:15]} 28. Rd8+ {[%emt 0:08:44]} Rxd8 {[%emt 0:00:04]} 29. Rxd8+ {[%emt 0:00:14]} Kg7 {[%emt 0:00:22]} 30. g3 {[%emt 0:02:42]} Qa5 {[%emt 0:01:32]} 31. Qd5 {[%emt 0:02:23]} Qxd5 {[%emt 0:01:15]} 32. Rxd5 {[%emt 0:00:30]} Re6 {[%emt 0:00:05]} 33. Rd7 {[%emt 0:02:09]} Rb6 {[%emt 0:00:08]} 34. Rd3 {[%emt 0:00:10]} Kf6 {[%emt 0:00:12]} 35. Kf1 {[%emt 0:00:26]} Ke5 {[%emt 0:00:14]} 36. Ke2 {[%emt 0:00:18]} g5 {[%emt 0:00:30]} 37. Ke3 {[%emt 0:00:36]} g4 {[%emt 0:01:11]} 38. Kd2 {[%emt 0:01:37]} Ke4 {[%emt 0:00:47]} 39. Re3+ {[%emt 0:01:30]} Kd4 {[%emt 0:00:29]} 40. f3 {[%emt 0:00:00]} f5 {[%emt 0:00:00]} 41. Rd3+ {[%emt 0:01:04]} Ke5 {[%emt 0:01:24]} 42. Kc3 {[%emt 0:03:23]} gxf3 {[%emt 0:04:56]} 43. Re3+ {[%emt 0:00:47]} Kf6 {[%emt 0:00:25]} 44. Rxf3 {[%emt 0:00:04]} Kg5 {[%emt 0:01:01]} 45. c5 {[%emt 0:00:57]} Rh6 {[%emt 0:01:10]} 46. Kd4 {[%emt 0:01:51]} Rh1 {[%emt 0:02:41]} 47. Ke5 {[%emt 0:02:56]} Re1+ {[%emt 0:00:21]} 48. Kd6 {[%emt 0:00:06]} Kg4 {[%emt 0:02:48]} 49. Rc3 {[%emt 0:03:24]} Rg1 {[%emt 0:01:20]} 50. Kc7 {[%emt 0:00:15]} Rxg3 {[%emt 0:00:09]} 51. Rxg3+ {[%emt 0:03:36]} Kxg3 {[%emt 0:00:09]} 52. Kxb7 {[%emt 0:00:01]} f4 {[%emt 0:00:03]} 53. c6 {[%emt 0:00:03]} f3 {[%emt 0:00:02]} 54. c7 {[%emt 0:00:04]} f2 {[%emt 0:00:02]} 55. c8=Q {[%emt 0:00:06]} f1=Q {[%emt 0:00:03]} 56. Qc3+ {[%emt 0:01:23]} Kh2 {[%emt 0:00:43]} 57. Qe5+ {[%emt 0:02:04]} Kh3 {[%emt 0:00:41]} 58. b4 {[%emt 0:00:58]} Qg2+ {[%emt 0:01:13]} 59. Kb6 {[%emt 0:00:18]} Qg6+ {[%emt 0:00:10]} 60. Ka5 {[%emt 0:00:25]} Qc6 {[%emt 0:01:58]} 61. b5 {[%emt 0:00:22]} Qa8+ {[%emt 0:00:10]} 62. Kb6 {[%emt 0:00:11]} Kg4 {[%emt 0:00:51]} 63. Qc7 {[%emt 0:00:27]} Qd5 {[%emt 0:01:53]} 64. Qc6 {[%emt 0:00:55]} Qd8+ {[%emt 0:00:39]} 65. Kb7 {[%emt 0:00:13]} Qe7+ {[%emt 0:00:29]} 66. Qc7 {[%emt 0:00:20]} Qe4+ {[%emt 0:00:46]} 67. Kb8 {[%emt 0:00:12]} Kh5 {[%emt 0:02:09]} 68. Qc5+ {[%emt 0:02:08]} Kh4 {[%emt 0:00:05]} 69. b6 {[%emt 0:00:28]} Qf4+ {[%emt 0:00:48]} 70. Qc7 {[%emt 0:00:35]} Qf8+ {[%emt 0:00:14]} 71. Qc8 {[%emt 0:00:16]} Qd6+ {[%emt 0:00:30]} 72. Ka7 {[%emt 0:00:14]} Qd4 {[%emt 0:00:59]} 73. Qc6 {[%emt 0:01:18]} Qe3 {[%emt 0:00:34]} 74. Qc4+ {[%emt 0:00:59]} Kh3 {[%emt 0:00:54]} 75. Ka6 {[%emt 0:00:38]} Qa3+ {[%emt 0:00:34]} 76. Kb5 {[%emt 0:00:17]} Qb2+ {[%emt 0:00:25]} 77. Kc6 {[%emt 0:00:21]} Qf6+ {[%emt 0:00:28]} 78. Kc7 {[%emt 0:00:34]} Qe5+ {[%emt 0:00:57]} 79. Kc8 {[%emt 0:00:16]} Qe8+ {[%emt 0:00:17]} 80. Kb7 {[%emt 0:00:14]} Kh2 {[%emt 0:01:11]} 81. Ka7 {[%emt 0:00:16]} Qe3 {[%emt 0:00:09]} 82. Qb4 {[%emt 0:01:09]} Qf2 {[%emt 0:00:29]} 83. Qd6+ {[%emt 0:00:34]} Kg1 {[%emt 0:01:01]} 84. Kb8 {[%emt 0:00:10]} Kh1 {[%emt 0:00:42]} 85. b7 {[%emt 0:00:13]} Qg3 {[%emt 0:00:14]} 86. Kc7 {[%emt 0:00:24]} Qg7+ {[%emt 0:00:07]} 87. Kc6 {[%emt 0:01:27]} Qc3+ {[%emt 0:00:20]} 88. Qc5 {[%emt 0:00:19]} Qf6+ {[%emt 0:00:09]} 89. Kb5 {[%emt 0:00:51]} Qb2+ {[%emt 0:00:50]} 90. Qb4 {[%emt 0:00:25]} Qe5+ {[%emt 0:00:30]} 91. Qc5 {[%emt 0:00:26]} Qb2+ {[%emt 0:00:05]} 92. Kc6 {[%emt 0:00:07]} Qf6+ {[%emt 0:00:13]} 93. Kd7 {[%emt 0:01:07]} Qg7+ {[%emt 0:00:20]} 94. Qe7 {[%emt 0:00:46]} Qd4+ {[%emt 0:00:05]} 95. Kc8 {[%emt 0:00:33]} Qh8+ {[%emt 0:00:36]} 96. Qd8 {[%emt 0:00:08]} Qc3+ {[%emt 0:00:25]} 97. Kb8 {[%emt 0:00:54]} Qe5+ {[%emt 0:00:05]} 98. Qc7 {[%emt 0:00:33]} Qg3 {[%emt 0:00:57]} 99. Kc8 {[%emt 0:00:09]} Qh3+ {[%emt 0:00:21]} 100. Qd7 {[%emt 0:00:13]} Qh8+ {[%emt 0:00:06]} 101. Kc7 {[%emt 0:00:05]} Qc3+ {[%emt 0:00:09]} 102. Qc6+ {[%emt 0:00:06]} 1-0

[Event "Mukachevo IM June 2019"]
[Site "Mukachevo"]
[Date "2019.06.25"]
[Round "2.2"]
[White "Priehoda, Vitezslav"]
[Black "Oros, Robert"]
[Result "1/2-1/2"]
[ECO "D60"]
[WhiteElo "2361"]
[BlackElo "2321"]
[Annotator "ChessBase"]
[PlyCount "60"]
[EventDate "2019.06.24"]
[EventType "tourn"]
[EventCountry "UKR"]
[SourceTitle "playchess.com"]
[Source "ChessBase"]
[SourceQuality "1"]
[TimeControl "40/5400+30:900+30"]

1. d4 {[%emt 0:00:00]} Nf6 {[%emt 0:00:00]} 2. c4 {[%emt 0:00:00]} e6 {[%emt 0:00:01]} 3. Nf3 {[%emt 0:00:00]} d5 {[%emt 0:00:09]} 4. Nc3 {[%emt 0:03:11]} Nbd7 {[%emt 0:01:33]} 5. Bg5 {[%emt 0:02:00]} Be7 {[%emt 0:02:12]} 6. e3 {[%emt 0:00:26]} O-O {[%emt 0:01:43]} 7. h3 {[%emt 0:03:53]} a6 {[%emt 0:01:17]} 8. c5 {[%emt 0:00:09]} Ne4 {[%emt 0:12:14]} 9. Bxe7 {[%emt 0:11:39]} Qxe7 {[%emt 0:00:13]} 10. Qc2 {[%emt 0:02:50]} Nxc3 {[%emt 0:06:24]} 11. Qxc3 {[%emt 0:08:04]} c6 {[%emt 0:04:59]} 12. Bd3 {[%emt 0:08:33]} Re8 {[%emt 0:11:27]} 13. Qc2 {[%emt 0:24:25]} g6 {[%emt 0:01:17]} 14. O-O {[%emt 0:04:59]} e5 {[%emt 0:02:26]} 15. Nxe5 {[%emt 0:00:19]} Nxe5 {[%emt 0:00:10]} 16. dxe5 {[%emt 0:00:03]} Qxe5 {[%emt 0:00:07]} 17. Rfe1 {[%emt 0:00:36]} Be6 {[%emt 0:04:57]} 18. Rad1 {[%emt 0:00:46]} Rad8 {[%emt 0:01:01]} 19. Bf1 {[%emt 0:01:25]} Bf5 {[%emt 0:01:34]} 20. Qd2 {[%emt 0:00:55]} Bc8 {[%emt 0:03:43]} 21. Qb4 {[%emt 0:05:31]} Qg5 {[%emt 0:01:46]} 22. g3 {[%emt 0:02:36]} h5 {[%emt 0:01:17]} 23. Rd4 {[%emt 0:00:34]} Re5 {[%emt 0:03:04]} 24. Bg2 {[%emt 0:00:44]} Qe7 {[%emt 0:00:19]} 25. Qc3 {[%emt 0:01:07]} Re8 {[%emt 0:00:23]} 26. Red1 {[%emt 0:01:19]} Bf5 {[%emt 0:00:57]} 27. Rb4 {[%emt 0:01:34]} Be4 {[%emt 0:04:07]} 28. Bxe4 {[%emt 0:01:21]} Rxe4 {[%emt 0:03:28]} 29. Rdd4 {[%emt 0:02:52]} Re5 {[%emt 0:07:39]} 30. Rb6 {[%emt 0:01:28]} Rd8 {[%emt 0:03:16]} 1/2-1/2

[Event "Mukachevo IM June 2019"]
[Site "Mukachevo"]
[Date "2019.06.25"]
[Round "2.3"]
[White "Karelina, Polina"]
[Black "Tiba, Vladyslav"]
[Result "0-1"]
[ECO "A49"]
[WhiteElo "1718"]
[BlackElo "2375"]
[Annotator "NA"]
[PlyCount "42"]
[EventDate "2019.06.24"]
[EventType "tourn"]
[EventCountry "UKR"]
[SourceTitle "playchess.com"]
[Source "ChessBase"]
[SourceQuality "1"]
[TimeControl "40/5400+30:900+30"]

1. Nf3 {[%emt 0:00:00]} Nf6 {[%emt 0:00:00]} 2. d4 {[%emt 0:00:34]} g6 {[%emt 0:00:09]} 3. g3 {[%emt 0:00:30]} Bg7 {[%emt 0:00:17]} 4. Bg2 {[%emt 0:00:25]} O-O {[%emt 0:00:09]} 5. O-O {[%emt 0:00:27]} d6 {[%emt 0:00:22]} 6. Nc3 {[%emt 0:02:45]} Nbd7 {[%emt 0:01:06]} 7. e4 {[%emt 0:01:11]} e5 {[%emt 0:00:55]} 8. b4 {[%emt 0:02:35]} exd4 {[%emt 0:03:28]} 9. Nxd4 {[%emt 0:01:20]} Nb6 {[%emt 0:01:49]} 10. Rb1 {[%emt 0:01:40]} Ng4 {[%emt 0:24:53]} 11. f4 {[%emt 0:06:30]} c5 {[%emt 0:06:06]} 12. Nde2 {[%emt 0:04:14]} cxb4 {[%emt 0:01:29]} 13. Rxb4 {[%emt 0:00:26]} Qc7 {[%emt 0:00:46]} 14. Rb3 {[%emt 0:03:21]} Be6 {[%emt 0:06:01]} 15. Nd5 {[%emt 0:03:33]} Qc5+ {[%emt 0:01:30]} 16. Kh1 {[%emt 0:01:36]} Bxd5 {[%emt 0:00:09]} 17. exd5 {[%emt 0:00:32]} Rfe8 {[%emt 0:01:48]} 18. Rbf3 {[%emt 0:04:37]} Nxd5 {[%emt 0:03:20]} 19. Ba3 {[%emt 0:04:18]} Qc4 {[%emt 0:02:20]} 20. Re1 {[%emt 0:00:58]} Nde3 {[%emt 0:01:31]} 21. Qd2 {[%emt 0:02:52]} Nxc2 {[%emt 0:01:42]} 0-1